fUSD/lending_fUSD_20241223
["ID","MTS","AMOUNT","RATE_DAILY","PERIOD"]
[346473637,1734989445961,-500.0,0.00013698,2]
[346473638,1734989445971,-1037.45,0.00013698,2]
[346473639,1734989445980,-7770.02,0.00013698,2]
[346473640,1734989445991,-500.0,0.00013698,2]
[346473641,1734989446001,-3068.22,0.00013698,2]
[346473642,1734989446011,-1175.96,0.00013698,2]
[346473643,1734989446020,-500.0,0.00013698,2]
[346473644,1734989446029,-5390.81,0.00013698,2]
[346473645,1734989446040,-1422.78265932,0.00013698,2]
[346473648,1734989446706,-456.70734068,0.00013698,2]
[346473649,1734989446715,-500.0,0.00013698,2]
[346473650,1734989446724,-763.4435548,0.00013698,2]
[346473651,1734989446740,-2226.9264452,0.00013698,2]
[346473652,1734989446749,-500.0,0.00013698,2]
[346473653,1734989446758,-2440.06576887,0.00013698,2]
[346473654,1734989446773,-483.87423113,0.00013698,2]
[346473655,1734989446782,-375.65709991,0.00013698,2]
[346473656,1734989446835,-124.34290009,0.00013698,2]
[346473657,1734989446845,-500.0,0.00013698,2]
[346473658,1734989446854,-500.0,0.00013698,2]
[346473659,1734989446866,-500.0,0.00013698,2]
[346473660,1734989446875,-500.0,0.00013698,2]
[346473661,1734989446884,-757.37,0.00013698,2]
[346473662,1734989446894,-572.35551745,0.00013698,2]
[346473663,1734989446909,-1453.990171,0.00013698,2]
[346473664,1734989446924,-1179.11431155,0.00013698,2]
[346473665,1734989446933,-500.0,0.00013698,2]
[346473666,1734989446942,-1386.32,0.00013698,2]
[346473667,1734989446951,-2123.66579346,0.00013698,2]
[346473668,1734989446962,-3625.76420654,0.00013698,2]
[346473669,1734989446971,-3393.93,0.00013698,2]
[346473670,1734989446980,-500.0,0.00013698,2]
[346473671,1734989446993,-500.0,0.00013698,2]
[346473672,1734989447002,-500.0,0.00013698,2]
[346473673,1734989447012,-555.28,0.00013698,2]
[346473674,1734989447020,-2419.09065549,0.00013698,2]
[346473675,1734989447855,-445.19060039,0.00013698,2]
[346473676,1734989447868,-562.96874412,0.00013698,2]
[346473677,1734989447877,-154.84065548,0.00013698,2]
[346473678,1734989447888,-9420.1,0.00013698,2]
[346473679,1734989448064,-710.29818354,0.00013698,2]
[346473680,1734989448143,-14124.2,0.00013698,2]
[346473681,1734989448716,-658.08052828,0.00013698,2]
[346473682,1734989448786,-2519.9806327,0.00013698,2]
[346473683,1734989448797,-500.0,0.00013698,2]
[346473684,1734989448806,-500.0,0.00013698,2]
[346473685,1734989448816,-500.0,0.00013698,2]
[346473686,1734989448826,-485.58110332,0.00013698,2]
[346473687,1734989448835,-500.0,0.00013698,2]
[346473688,1734989448845,-634.78,0.00013698,2]
[346473689,1734989448855,-500.0,0.00013698,2]
[346473690,1734989448866,-1266.88,0.00013698,2]
[346473691,1734989448876,-500.0,0.00013698,2]
[346473692,1734989448886,-10822.56,0.00013698,2]
[346473693,1734989448896,-929.98,0.00013698,2]
[346473694,1734989448906,-500.0,0.00013698,2]
[346473695,1734989448916,-19569.91,0.00013698,2]
[346473696,1734989448926,-909.57,0.00013698,2]
[346473697,1734989448935,-500.0,0.00013698,2]
[346473698,1734989448945,-832.83,0.00013698,2]
[346473699,1734989448954,-1083.49,0.00013698,2]
[346473700,1734989448964,-6495.44,0.00013698,2]
[346473701,1734989448974,-511.45446238,0.00013698,2]
[346473702,1734989448985,-1061.75,0.00013698,2]
[346473703,1734989448997,-500.0,0.00013698,2]
[346473704,1734989449007,-1043.7,0.00013698,2]
[346473705,1734989449017,-2959.65,0.00013698,2]
[346473706,1734989449026,-837.83,0.00013698,2]
[346473707,1734989449037,-1376.68,0.00013698,2]
[346473708,1734989449047,-500.0,0.00013698,2]
[346473709,1734989449056,-500.0,0.00013698,2]
[346473710,1734989449067,-9393.93,0.00013698,2]
[346473711,1734989449077,-2081.03,0.00013698,2]
[346473712,1734989449087,-201.71695154,0.00013698,2]
[346473713,1734989449100,-298.28304846,0.00013698,2]
[346473714,1734989449110,-722.96,0.00013698,2]
[346473715,1734989449123,-500.0,0.00013698,2]
[346473716,1734989449133,-501.94428188,0.00013698,2]
[346473717,1734989449142,-500.0,0.00013698,2]
[346473718,1734989449152,-500.0,0.00013698,2]
[346473719,1734989449163,-1196.71,0.00013698,2]
[346473720,1734989449172,-500.0,0.00013698,2]
[346473721,1734989449182,-3184.3,0.00013698,2]
[346473722,1734989449192,-500.0,0.00013698,2]
[346473723,1734989449201,-3852.96,0.00013698,2]
[346473724,1734989449211,-500.0,0.00013698,2]
[346473725,1734989449221,-500.0,0.00013698,2]
[346473726,1734989449230,-581.77,0.00013698,2]
[346473727,1734989449239,-500.0,0.00013698,2]
[346473728,1734989449249,-1156.43,0.00013698,2]
[346473729,1734989449258,-3508.0,0.00013698,2]
[346473730,1734989449268,-500.0,0.00013698,2]
[346473731,1734989449278,-500.0,0.00013698,2]
[346473732,1734989449288,-500.0,0.00013698,2]
[346473733,1734989449297,-500.0,0.00013698,2]
[346473734,1734989449307,-571.07,0.00013698,2]
[346473735,1734989449317,-500.0,0.00013698,2]
[346473736,1734989449326,-500.0,0.00013698,2]
[346473737,1734989449336,-534.55,0.00013698,2]
[346473738,1734989449346,-200.0,0.00013699,2]
[346473739,1734989449355,-294.52,0.00013699,2]
[346473740,1734989449369,-5377.1,0.00013699,2]
[346473741,1734989449379,-150.39,0.00013699,2]
[346473742,1734989449389,-170.34,0.000137,2]
[346473743,1734989449399,-170.34,0.000137,2]
[346473744,1734989449409,-170.34,0.000137,2]
[346473745,1734989449419,-170.34,0.000137,2]
[346473746,1734989449428,-170.34,0.000137,2]
[346473747,1734989449438,-170.34,0.000137,2]
[346473748,1734989449448,-300.27,0.000137,2]
[346473749,1734989449458,-300.27,0.000137,2]
[346473750,1734989449468,-300.27,0.000137,2]
[346473751,1734989449477,-300.27,0.000137,2]
[346473752,1734989449487,-300.27,0.000137,2]
[346473753,1734989449498,-150.0,0.00013719,2]
[346473754,1734989449508,-27188.58056519,0.0001372,2]
[346473755,1734989449518,-420.0,0.00013761,2]
[346473756,1734989449527,-14226.63555029,0.00013764,2]
[346473757,1734989449537,-200.0,0.00013835,2]
[346473758,1734989449547,-150.0,0.00013838,2]
[346473759,1734989449556,-27188.58056519,0.00013842,2]
[346473760,1734989449565,-153.60707539,0.00013872,2]
[346473761,1734989449575,-150.0,0.00013873,2]
[346473762,1734989449585,-150.0,0.00013873,2]
[346473763,1734989449595,-150.0,0.00013873,2]
[346473764,1734989449604,-976.98,0.00013873,2]
[346473765,1734989449615,-150.0,0.00013873,2]
[346473766,1734989449625,-150.0,0.00013878,2]
[346473767,1734989449634,-7110.80088341,0.00013897,2]
[346473768,1734989449647,-7115.83466688,0.00013897,2]
[346473769,1734989449657,-150.0,0.00013907,2]
[346473770,1734989449666,-150.0,0.0001391,2]
[346473771,1734989449676,-500.0,0.00013945,2]
[346473772,1734989449686,-195.71918976,0.00013962,2]
[346473773,1734989449695,-27188.58056519,0.00013963,2]
[346473774,1734989449705,-500.0,0.00013971,2]
[346473775,1734989449715,-500.0,0.00013971,2]
[346473776,1734989449725,-446.37643109,0.00013971,2]
[346473777,1734989449735,-500.0,0.00013971,2]
[346473778,1734989449744,-500.0,0.00013971,2]
[346473779,1734989449754,-500.0,0.00013971,2]
[346473780,1734989449763,-500.0,0.00013971,2]
[346473781,1734989449773,-500.0,0.00013971,2]
[346473782,1734989449782,-500.0,0.00013971,2]
[346473783,1734989449791,-500.0,0.00013971,2]
[346473784,1734989449801,-500.0,0.00013971,2]
[346473785,1734989449814,-500.0,0.00013971,2]
[346473786,1734989449824,-500.62606987,0.00013971,2]
[346473787,1734989449834,-500.0,0.00013971,2]
[346473788,1734989449844,-500.0,0.00013971,2]
[346473789,1734989449853,-500.0,0.00013971,2]
[346473790,1734989449862,-500.0,0.00013971,2]
[346473791,1734989449873,-500.0,0.00013971,2]
[346473792,1734989449882,-500.0,0.00013971,2]
[346473793,1734989449892,-500.0,0.00013971,2]
[346473794,1734989449902,-500.0,0.00013971,2]
[346473795,1734989449911,-500.0,0.00013972,2]
[346473796,1734989449921,-500.0,0.00013972,2]
[346473797,1734989449931,-500.0,0.00013972,2]
[346473798,1734989449940,-502.53443461,0.00013972,2]
[346473799,1734989449949,-832.04,0.00013972,2]
[346473800,1734989449959,-500.0,0.00013972,2]
[346473801,1734989449968,-500.0,0.00013972,2]
[346473802,1734989449977,-500.0,0.00013972,2]
[346473803,1734989449988,-923.49,0.00013972,2]
[346473804,1734989449999,-500.0,0.00013972,2]
[346473805,1734989450009,-500.0,0.00013972,2]
[346473806,1734989450019,-500.0,0.00013972,2]
[346473807,1734989450028,-500.0,0.00013972,2]
[346473808,1734989450038,-500.0,0.00013972,2]
[346473809,1734989450047,-500.0,0.00013972,2]
[346473810,1734989450057,-500.0,0.00013972,2]
[346473811,1734989450067,-501.61706296,0.00013972,2]
[346473812,1734989450077,-500.0,0.00013972,2]
[346473813,1734989450086,-500.0,0.00013972,2]
[346473814,1734989450095,-500.00000008,0.00013972,2]
[346473815,1734989450104,-500.0,0.00013972,2]
[346473816,1734989450114,-500.0,0.00013972,2]
[346473817,1734989450126,-502.20987414,0.00013972,2]
[346473818,1734989450139,-855.58,0.00013972,2]
[346473819,1734989450148,-500.0,0.00013972,2]
[346473820,1734989450158,-500.0,0.00013972,2]
[346473821,1734989450168,-500.0,0.00013972,2]
[346473822,1734989450177,-500.0,0.00013972,2]
[346473823,1734989450187,-500.0,0.00013972,2]
[346473824,1734989450197,-500.0,0.00013972,2]
[346473825,1734989450207,-500.0,0.00013972,2]
[346473826,1734989450216,-715.27,0.00013972,2]
[346473827,1734989450225,-502.06591411,0.00013972,2]
[346473828,1734989450235,-500.0,0.00013972,2]
[346473829,1734989450244,-500.0,0.00013972,2]
[346473830,1734989450253,-500.0,0.00013972,2]
[346473831,1734989450262,-500.0,0.00013972,2]
[346473832,1734989450517,-500.0,0.00013972,2]
[346473833,1734989450596,-500.0,0.00013972,2]
[346473834,1734989450605,-500.0,0.00013972,2]
[346473835,1734989450616,-925.06,0.00013972,2]
[346473836,1734989450625,-500.0,0.00013972,2]
[346473837,1734989450634,-500.0,0.00013972,2]
[346473838,1734989450643,-500.0,0.00013972,2]
[346473839,1734989450652,-500.0,0.00013972,2]
[346473840,1734989450662,-500.0,0.00013972,2]
[346473841,1734989450671,-500.0,0.00013972,2]
[346473842,1734989450680,-500.0,0.00013972,2]
[346473843,1734989450689,-500.0,0.00013972,2]
[346473844,1734989450698,-514.25400868,0.00013972,2]
[346473845,1734989450707,-500.0,0.00013972,2]
[346473846,1734989450717,-1029.79,0.00013972,2]
[346473847,1734989450726,-500.0,0.00013972,2]
[346473848,1734989450735,-532.59,0.00013972,2]
[346473849,1734989450744,-727.82,0.00013972,2]
[346473850,1734989450753,-500.0,0.00013972,2]
[346473851,1734989450763,-500.0,0.00013972,2]
[346473852,1734989450772,-500.0,0.00013972,2]
[346473853,1734989450781,-527.86,0.00013972,2]
[346473854,1734989450790,-500.0,0.00013972,2]
[346473855,1734989450799,-500.0,0.00013972,2]
[346473856,1734989450808,-500.0,0.00013972,2]
[346473857,1734989450817,-884.99,0.00013972,2]
[346473858,1734989450826,-1114.17,0.00013972,2]
[346473859,1734989450835,-500.0,0.00013972,2]
[346473860,1734989450844,-500.0,0.00013972,2]
[346473861,1734989450853,-519.14979986,0.00013972,2]
[346473862,1734989450863,-500.0,0.00013972,2]
[346473863,1734989450873,-500.0,0.00013972,2]
[346473864,1734989450883,-594.62,0.00013972,2]
[346473865,1734989450892,-500.0,0.00013972,2]
[346473866,1734989450902,-500.0,0.00013972,2]
[346473867,1734989450911,-500.0,0.00013972,2]
[346473868,1734989450920,-500.0,0.00013972,2]
[346473869,1734989450930,-500.0,0.00013972,2]
[346473870,1734989450940,-159.90808329,0.00013972,2]
[346473871,1734989450952,-500.0,0.00013972,2]
[346473872,1734989450962,-649.39,0.00013972,2]
[346473873,1734989450971,-520.01268288,0.00013972,2]
[346473874,1734989450980,-500.0,0.00013972,2]
[346473875,1734989450992,-500.0,0.00013972,2]
[346473876,1734989451002,-500.0,0.00013972,2]
[346473877,1734989451013,-500.0,0.00013972,2]
[346473878,1734989451022,-500.0,0.00013972,2]
[346473879,1734989451032,-500.0,0.00013972,2]
[346473880,1734989451041,-303.92024624,0.00013972,2]
[346473881,1734989451051,-500.0,0.00013972,2]
[346473882,1734989451059,-500.0,0.00013972,2]
[346473883,1734989451069,-500.0,0.00013972,2]
[346473884,1734989451078,-787.28,0.00013972,2]
[346473885,1734989451088,-540.73985475,0.00013972,2]
[346473886,1734989451097,-500.0,0.00013972,2]
[346473887,1734989451106,-500.0,0.00013972,2]
[346473888,1734989451116,-500.0,0.00013972,2]
[346473889,1734989451126,-500.0,0.00013972,2]
[346473890,1734989451135,-500.0,0.00013972,2]
[346473891,1734989451144,-500.0,0.00013972,2]
[346473892,1734989451153,-500.0,0.00013972,2]
[346473893,1734989451164,-503.39304087,0.00013972,2]
[346473894,1734989451173,-500.0,0.00013972,2]
[346473895,1734989451182,-500.0,0.00013972,2]
[346473896,1734989451191,-500.0,0.00013972,2]
[346473897,1734989451201,-500.0,0.00013972,2]
[346473898,1734989451210,-500.0,0.00013972,2]
[346473899,1734989451220,-500.0,0.00013972,2]
[346473900,1734989451229,-500.0,0.00013972,2]
[346473901,1734989451239,-500.0,0.00013972,2]
[346473902,1734989451248,-500.0,0.00013972,2]
[346473903,1734989451257,-500.0,0.00013972,2]
[346473904,1734989451267,-500.0,0.00013972,2]
[346473905,1734989451276,-447.21501162,0.00013972,2]
[346473906,1734989451286,-500.0,0.00013972,2]
[346473907,1734989451295,-392.6391192,0.00013972,2]
[346473908,1734989451304,-500.0,0.00013972,2]
[346473909,1734989451313,-556.99,0.00013972,2]
[346473910,1734989451323,-500.0,0.00013972,2]
[346473911,1734989451333,-500.0,0.00013972,2]
[346473912,1734989451342,-500.0,0.00013972,2]
[346473913,1734989451352,-500.0,0.00013972,2]
[346473914,1734989451361,-557.09,0.00013972,2]
[346473915,1734989451373,-433.91429704,0.00013972,2]
[346473916,1734989451382,-500.0,0.00013972,2]
[346473917,1734989451392,-500.0,0.00013972,2]
[346473918,1734989451402,-862.9,0.00013972,2]
[346473919,1734989451411,-534.84,0.00013972,2]
[346473920,1734989451421,-841.41,0.00013972,2]
[346473921,1734989451431,-586.2,0.00013972,2]
[346473922,1734989451441,-500.0,0.00013972,2]
[346473923,1734989451450,-500.0,0.00013972,2]
[346473924,1734989451460,-500.0,0.00013972,2]
[346473925,1734989451469,-256.17070529,0.00013972,2]
[346473926,1734989451478,-500.0,0.00013972,2]
[346473927,1734989451488,-546.08,0.00013972,2]
[346473928,1734989451497,-500.0,0.00013972,2]
[346473929,1734989451506,-505.0350929,0.00013972,2]
[346473930,1734989451516,-500.0,0.00013972,2]
[346473931,1734989451525,-884.92,0.00013972,2]
[346473932,1734989451534,-500.0,0.00013972,2]
[346473933,1734989451543,-500.0,0.00013972,2]
[346473934,1734989451552,-500.0,0.00013972,2]
[346473935,1734989451561,-500.0,0.00013972,2]
[346473936,1734989451570,-500.0,0.00013972,2]
[346473937,1734989451579,-500.0,0.00013972,2]
[346473938,1734989451588,-500.0,0.00013972,2]
[346473939,1734989451597,-1168.0,0.00013972,2]
[346473940,1734989451606,-500.0,0.00013972,2]
[346473941,1734989451617,-500.0,0.00013972,2]
[346473942,1734989451626,-500.0,0.00013972,2]
[346473943,1734989451636,-500.0,0.00013972,2]
[346473944,1734989451645,-2007.95,0.00013972,2]
[346473945,1734989451654,-512.82,0.00013972,2]
[346473946,1734989451663,-500.0,0.00013972,2]
[346473947,1734989451672,-1075.35,0.00013972,2]
[346473948,1734989451681,-500.0,0.00013972,2]
[346473949,1734989451690,-1223.23,0.00013972,2]
[346473950,1734989451699,-632.63443927,0.00013972,2]
[346473951,1734989451708,-500.0,0.00013972,2]
[346473952,1734989451717,-678.82,0.00013972,2]
[346473953,1734989451726,-500.0,0.00013972,2]
[346473954,1734989451735,-562.64,0.00013972,2]
[346473955,1734989451745,-500.0,0.00013972,2]
[346473956,1734989451754,-500.0,0.00013972,2]
[346473957,1734989451763,-500.0,0.00013972,2]
[346473958,1734989451772,-500.0,0.00013972,2]
[346473959,1734989451781,-500.0,0.00013972,2]
[346473960,1734989451791,-500.0,0.00013972,2]
[346473961,1734989451800,-305.48171729,0.00013972,2]
[346473962,1734989451809,-500.0,0.00013972,2]
[346473963,1734989451818,-649.79,0.00013972,2]
[346473964,1734989451828,-500.0,0.00013972,2]
[346473965,1734989451837,-1026.58,0.00013972,2]
[346473966,1734989451846,-500.0,0.00013972,2]
[346473967,1734989451856,-500.0,0.00013972,2]
[346473968,1734989451866,-797.11,0.00013972,2]
[346473969,1734989451875,-500.0,0.00013972,2]
[346473970,1734989451885,-500.0,0.00013972,2]
[346473971,1734989451894,-500.0,0.00013972,2]
[346473972,1734989451903,-234.39024151,0.00013972,2]
[346473973,1734989451913,-500.0,0.00013972,2]
[346473974,1734989451922,-550.31583532,0.00013972,2]
[346473975,1734989451932,-500.0,0.00013972,2]
[346473976,1734989451941,-500.0,0.00013972,2]
[346473977,1734989451950,-769.12,0.00013972,2]
[346473978,1734989451959,-500.0,0.00013972,2]
[346473979,1734989451969,-500.0,0.00013972,2]
[346473980,1734989451978,-500.0,0.00013972,2]
[346473981,1734989451988,-843.88,0.00013972,2]
[346473982,1734989452000,-500.0,0.00013972,2]
[346473983,1734989452009,-559.88,0.00013972,2]
[346473984,1734989452018,-500.0,0.00013972,2]
[346473985,1734989452027,-500.0,0.00013972,2]
[346473986,1734989452036,-500.0,0.00013972,2]
[346473987,1734989452046,-500.0,0.00013972,2]
[346473988,1734989452057,-500.0,0.00013972,2]
[346473989,1734989452069,-1768.92,0.00013972,2]
[346473990,1734989452079,-500.0,0.00013972,2]
[346473991,1734989452089,-500.0,0.00013972,2]
[346473992,1734989452097,-1100.84,0.00013972,2]
[346473993,1734989452107,-500.0,0.00013972,2]
[346473994,1734989452115,-500.0,0.00013972,2]
[346473995,1734989452125,-500.0,0.00013972,2]
[346473996,1734989452134,-550.57,0.00013972,2]
[346473997,1734989452143,-500.0,0.00013972,2]
[346473998,1734989452152,-500.0,0.00013972,2]
[346473999,1734989452161,-1678.55,0.00013972,2]
[346474000,1734989452170,-300.80583517,0.00013972,2]
[346474001,1734989452179,-755.32,0.00013972,2]
[346474002,1734989452189,-500.0,0.00013972,2]
[346474003,1734989452198,-438.82462211,0.00013972,2]
[346474004,1734989452207,-500.0,0.00013972,2]
[346474005,1734989452216,-1481.93,0.00013972,2]
[346474006,1734989452226,-599.37792965,0.00013972,2]
[346474007,1734989452235,-500.0,0.00013972,2]
[346474008,1734989452244,-1020.64,0.00013972,2]
[346474009,1734989452253,-649.51,0.00013972,2]
[346474010,1734989452263,-500.0,0.00013972,2]
[346474011,1734989452272,-666.48,0.00013972,2]
[346474012,1734989452281,-500.0,0.00013972,2]
[346474013,1734989452291,-500.0,0.00013972,2]
[346474014,1734989452300,-500.0,0.00013972,2]
[346474015,1734989452310,-500.0,0.00013972,2]
[346474016,1734989452320,-500.0,0.00013972,2]
[346474017,1734989452329,-500.0,0.00013972,2]
[346474018,1734989452339,-500.0,0.00013972,2]
[346474019,1734989452349,-566.27,0.00013972,2]
[346474020,1734989452359,-500.0,0.00013972,2]
[346474021,1734989452369,-500.0,0.00013972,2]
[346474022,1734989452379,-682.67,0.00013972,2]
[346474023,1734989452388,-1023.02,0.00013972,2]
[346474024,1734989452398,-613.62,0.00013972,2]
[346474025,1734989452407,-500.0,0.00013972,2]
[346474026,1734989452416,-638.88,0.00013972,2]
[346474027,1734989452425,-500.0,0.00013972,2]
[346474028,1734989452434,-500.0,0.00013972,2]
[346474029,1734989452444,-749.11,0.00013972,2]
[346474030,1734989452453,-1205.02,0.00013972,2]
[346474031,1734989452462,-1229.67,0.00013972,2]
[346474032,1734989452471,-500.0,0.00013972,2]
[346474033,1734989452481,-500.0,0.00013972,2]
[346474034,1734989452490,-500.0,0.00013972,2]
[346474035,1734989452499,-500.0,0.00013972,2]
[346474036,1734989452509,-523.11,0.00013972,2]
[346474037,1734989452518,-500.0,0.00013972,2]
[346474038,1734989452527,-500.0,0.00013972,2]
[346474039,1734989452537,-500.0,0.00013972,2]
[346474040,1734989452546,-1593.57,0.00013972,2]
[346474041,1734989452555,-500.0,0.00013972,2]
[346474042,1734989452565,-1521.34,0.00013972,2]
[346474043,1734989452574,-1166.77,0.00013972,2]
[346474044,1734989452584,-500.0,0.00013972,2]
[346474045,1734989452593,-504.93488746,0.00013972,2]
[346474046,1734989452602,-596.97,0.00013972,2]
[346474047,1734989452611,-500.0,0.00013972,2]
[346474048,1734989452624,-500.0,0.00013972,2]
[346474049,1734989452633,-739.41,0.00013972,2]
[346474050,1734989452643,-500.0,0.00013972,2]
[346474051,1734989452652,-500.0,0.00013972,2]
[346474052,1734989452662,-555.15,0.00013972,2]
[346474053,1734989452671,-500.0,0.00013972,2]
[346474054,1734989452681,-500.0,0.00013972,2]
[346474055,1734989452690,-500.0,0.00013972,2]
[346474056,1734989452700,-500.0,0.00013972,2]
[346474057,1734989452710,-500.0,0.00013972,2]
[346474058,1734989452719,-1396.8,0.00013972,2]
[346474059,1734989452729,-1353.89,0.00013972,2]
[346474060,1734989452738,-154.50651557,0.00013972,2]
[346474061,1734989452748,-500.0,0.00013972,2]
[346474062,1734989452757,-500.0,0.00013972,2]
[346474063,1734989452767,-500.0,0.00013972,2]
[346474064,1734989452776,-1017.88,0.00013972,2]
[346474065,1734989452786,-500.0,0.00013972,2]
[346474066,1734989452795,-500.0,0.00013972,2]
[346474067,1734989452804,-500.0,0.00013972,2]
[346474068,1734989452814,-878.8,0.00013972,2]
[346474069,1734989452823,-500.0,0.00013972,2]
[346474070,1734989452833,-500.0,0.00013972,2]
[346474071,1734989452843,-500.0,0.00013972,2]
[346474072,1734989452852,-500.0,0.00013972,2]
[346474073,1734989452862,-1792.63,0.00013972,2]
[346474074,1734989452873,-500.0,0.00013972,2]
[346474075,1734989452883,-500.0,0.00013972,2]
[346474076,1734989452892,-789.04,0.00013972,2]
[346474077,1734989452902,-632.54,0.00013972,2]
[346474078,1734989452912,-625.53,0.00013972,2]
[346474079,1734989452921,-500.0,0.00013972,2]
[346474080,1734989452931,-500.0,0.00013972,2]
[346474081,1734989452940,-1515.43,0.00013972,2]
[346474082,1734989453019,-500.0,0.00013972,2]
[346474083,1734989453029,-324.56584885,0.00013972,2]
[346474084,1734989453038,-500.0,0.00013972,2]
[346474085,1734989453048,-761.79,0.00013972,2]
[346474086,1734989453057,-500.0,0.00013972,2]
[346474087,1734989453067,-500.0,0.00013972,2]
[346474088,1734989453077,-949.78,0.00013972,2]
[346474089,1734989453086,-1527.88,0.00013972,2]
[346474090,1734989453095,-500.0,0.00013972,2]
[346474091,1734989453104,-1764.89,0.00013972,2]
[346474092,1734989453113,-500.0,0.00013972,2]
[346474093,1734989453124,-554.37,0.00013972,2]
[346474094,1734989453134,-819.85,0.00013972,2]
[346474095,1734989453143,-1751.82,0.00013972,2]
[346474096,1734989453153,-500.0,0.00013972,2]
[346474097,1734989453162,-930.38,0.00013972,2]
[346474098,1734989453171,-1014.45,0.00013972,2]
[346474099,1734989453180,-500.0,0.00013972,2]
[346474100,1734989453189,-500.0,0.00013972,2]
[346474101,1734989453198,-500.0,0.00013972,2]
[346474102,1734989453208,-956.06,0.00013972,2]
[346474103,1734989453218,-500.0,0.00013972,2]
[346474104,1734989453227,-662.93,0.00013972,2]
[346474105,1734989453236,-500.0,0.00013972,2]
[346474106,1734989453245,-979.05,0.00013972,2]
[346474107,1734989453255,-593.95,0.00013972,2]
[346474108,1734989453264,-500.0,0.00013972,2]
[346474109,1734989453274,-500.0,0.00013972,2]
[346474110,1734989453285,-500.0,0.00013972,2]
[346474111,1734989453294,-500.0,0.00013972,2]
[346474112,1734989453304,-500.0,0.00013972,2]
[346474113,1734989453313,-921.41,0.00013972,2]
[346474114,1734989453322,-680.38,0.00013972,2]
[346474115,1734989453331,-500.0,0.00013972,2]
[346474116,1734989453341,-792.98,0.00013972,2]
[346474117,1734989453350,-1054.95,0.00013972,2]
[346474118,1734989453359,-750.67,0.00013972,2]
[346474119,1734989453370,-500.0,0.00013972,2]
[346474120,1734989453379,-500.0,0.00013972,2]
[346474121,1734989453389,-500.0,0.00013972,2]
[346474122,1734989453398,-500.0,0.00013972,2]
[346474123,1734989453408,-529.79,0.00013972,2]
[346474124,1734989453417,-210.3508512,0.00013972,2]
[346474125,1734989453427,-500.0,0.00013972,2]
[346474126,1734989453436,-891.33,0.00013972,2]
[346474127,1734989453446,-500.0,0.00013972,2]
[346474128,1734989453455,-500.0,0.00013972,2]
[346474129,1734989453464,-1205.16,0.00013972,2]
[346474130,1734989453473,-535.23,0.00013972,2]
[346474131,1734989453482,-500.0,0.00013972,2]
[346474132,1734989453491,-763.61,0.00013972,2]
[346474133,1734989453500,-677.39,0.00013972,2]
[346474134,1734989453510,-967.84,0.00013972,2]
[346474135,1734989453519,-500.0,0.00013972,2]
[346474136,1734989453528,-500.0,0.00013972,2]
[346474137,1734989453537,-500.0,0.00013972,2]
[346474138,1734989453547,-655.5,0.00013972,2]